Cogmind - Beta 16 @@@ ROGUE MODE // 2025.11.02 @ 20:48:50 Player: Cameron Result: Destroyed by W4-1UZ(R) with Subdweller Shrapnel Launcher Performance ------------- Evolutions (0) 0 Regions Visited (2) 400 Robots Destroyed (19) 95 Value Destroyed (537) 537 Prototype IDs (0) 0 Alien Tech Used (0) 0 Bonus (0) 0 TOTAL SCORE: 1032 Bonus ------- None Cogmind --------- Core Integrity 0/250 Matter 247/300 Energy 100/100 System Corruption 0% Temperature Cool (0) Movement Walking (190) Ox1 Location -10/Subcaves Parts ------- > --- POWER (1) -------- (None) > --- PROPULSION (2) --- Aluminum Leg Aluminum Leg > --- UTILITY (2) ------ Medium Storage Unit Field Recycling Unit > --- WEAPON (2) ------- Improved Light Cannon Improved Light Cannon > --- INVENTORY (10) --- Aluminum Leg Subdweller Monowheel Subdweller Monowheel Sensor Array Field Recycling Unit (66) Battle Rifle Improved Light Cannon Grenade Launcher Peak State ------------ > --- POWER ------------ Light Ion Engine > --- PROPULSION ------- Aluminum Leg Aluminum Leg > --- UTILITY ---------- Small Storage Unit Field Recycling Unit > --- WEAPON ----------- Improved Light Cannon Improved Light Cannon > --- INVENTORY -------- Aluminum Leg Aluminum Leg Compact Wheel Sensor Array ECM Suite Improved Light Cannon Improved Light Cannon Grenade Launcher [Rating: 11] Favorites ----------- Power Ion Engine Engine Ion Engine Propulsion Aluminum Leg Leg Aluminum Leg Utility Small Storage Unit Device ECM Suite Storage Small Storage Unit Weapon Improved Light Cannon Energy Gun Medium Laser Energy Cannon Beam Cannon Ballistic Cannon Improved Light Cannon Build | -11 -10 -10 ------- Run | Yrd Mat Sub Slots Evolved . | . . . Power . | . . . Propulsion . | . . . Utility . | . . . Weapon . | . . . Parts Attached 23 | 6 15 2 Power 3 | 1 2 . Engine 3 | 1 2 . Core . | . . . Reactor . | . . . Propulsion 7 | 2 4 1 Treads . | . . . Leg 7 | 2 4 1 Wheel . | . . . Hover . | . . . Flight . | . . . Utility 5 | 1 3 1 Device 3 | . 2 1 Storage 2 | 1 1 . Processor . | . . . Hackware . | . . . Protection . | . . . Artifact . | . . . Weapon 8 | 2 6 . Energy Gun 3 | 2 1 . Energy Cannon 1 | . 1 . Ballistic Gun . | . . . Ballistic Cannon 4 | . 4 . Launcher . | . . . Special Weapon . | . . . Impact Weapon . | . . . Slashing Weapon . | . . . Piercing Weapon . | . . . Special Melee Weapon . | . . . Unidentified Prototypes . | . . . Parts Lost 6 | . 3 3 Power 1 | . . 1 Propulsion 3 | . 2 1 Utility . | . . . Weapon 2 | . 1 1 Highest Loss Streak 3 | . 3 2 To Critical Strikes . | . . . Average Backups 7 | 2 7 8 Power . | . . . Propulsion 2 | . 2 3 Utility 1 | . 1 2 Weapon 2 | . 2 3 Tool/Special . | . . . Unused Backups 9 | . 2 7 Power . | . . . Propulsion 5 | . 1 4 Utility 2 | . 1 1 Weapon 2 | . . 2 Tool/Special . | . . . Average Slot Usage (%) 94 | . 97 87 Engine 11 | . 14 5 Leg 27 | . 26 28 Device 12 | . 12 14 Storage 14 | . 14 14 Energy Gun 10 | . 14 . Energy Cannon 4 | . 6 . Ballistic Cannon 11 | . 7 24 Peak Build Rating 11 | 6 11 11 Average Rating 8 | 4 7 9 On Entrance 5 | . 6 11 Avg Prop Armor Cover (%) . | . . . Naked Turns . | . . . Heaviest Build 29 | 14 29 29 Greatest Support 20 | 20 20 20 Greatest Overweight (x) 6 | 2 6 1 Average Overweight (x) . | . . 1 Largest Inventory Capacity 10 | 8 10 10 Average Capacity 8 | 6 8 10 Most Carried 10 | 3 8 10 Average Carried 7 | 2 7 8 Final Capacity 10 | 8 10 10 Final Carried 8 | 3 8 8 Class Distribution -------------------- 100% | Mutant Dominant Class ---------------- Mutant | -10/Materials Mutant | -10/Subcaves Resources | -11 -10 -10 ----------- Run | Yrd Mat Sub Matter Collected 494 | 193 291 10 Remotely . | . . . Salvage Created 528 | . 492 36 Parts 30 | . 26 4 Haulers Intercepted 2 | . 2 . Recyclers Shooed 1 | . 1 . Parts Field Recycled 28 | . 24 4 Retrieved Matter 163 | . 151 12 Parts Self-Destructed . | . . . Prevented . | . . . Parts Restored . | . . . Kills | -11 -10 -10 ------- Run | Yrd Mat Sub Combat Hostiles Destroyed 16 | . 13 3 Guns 4 | . 4 . Cannons 12 | . 9 3 Classes Destroyed 5 | . 4 1 Tunneler 1 | . 1 . Hauler 2 | . 2 . Swarmer 3 | . 3 . Grunt 10 | . 10 . Subdweller 3 | . . 3 Best Kill Streak 4 | . 4 2 Combat Bots Only 4 | . 4 2 Max Kills in Single Turn 1 | . 1 1 Gunslinging . | . . . Exploded . | . . . Melee . | . . . Uniques/NPCs Destroyed . | . . . Combat | -11 -10 -10 -------- Run | Yrd Mat Sub Hostile Shots Fired 142 | . 112 30 Missed 34 | . 27 7 Hits 108 | . 85 23 Projectile 108 | . 85 23 AOE 2 | . . 2 Damage Taken 1477 | . 944 533 Core 279 | . 176 103 Absorbed by Shields . | . . . Regen/Repaired (Parts) 12 | . 12 . Core Remaining (%) 100 | 100 . . Volleys Fired 79 | . 66 13 Largest 2 | . 2 2 Hottest 110 | . 110 66 Shots Fired 138 | . 115 23 Gun 71 | . 71 . Cannon 67 | . 44 23 Launcher . | . . . Special . | . . . Kinetic 45 | . 22 23 Thermal 90 | . 90 . Explosive . | . . . Electromagnetic 3 | . 3 . Robot Hit Streak 13 | . 13 9 Robot Miss Streak 10 | . 10 2 Penetration Max . | . . . Secondary Targets . | . . . Shots Hit Robots 83 | . 68 15 Core Hits 32 | . 26 6 Critical Kills . | . . . Critical Parts Destroyed . | . . . Critical Strikes 5 | . 4 1 Burn 3 | . 3 . Blast 2 | . 1 1 Melee Attacks . | . . . Impact . | . . . Slashing . | . . . Piercing . | . . . Sneak Attacks . | . . . Combat Hostiles . | . . . Follow-up Attacks . | . . . Damage Inflicted 1418 | . 1088 330 Guns 556 | . 556 . Cannons 853 | . 523 330 Explosions . | . . . Melee . | . . . Ramming 9 | . 9 . Kinetic 628 | . 298 330 Thermal 754 | . 754 . Explosive . | . . . Electromagnetic 27 | . 27 . Impact . | . . . Slashing . | . . . Piercing . | . . . Highest Corruption . | . . . Average Corruption . | . . . Corruption Purged . | . . . Corruption Blocked . | . . . Overload Shots . | . . . Overflow Damage . | . . . Projectiles . | . . . Explosions . | . . . Melee . | . . . Knockbacks 9 | . 4 5 Impact . | . . . Kinetic 9 | . 4 5 Secondary . | . . . Self-Inflicted Damage . | . . . Shots . | . . . Rammed . | . . . Targets Rammed 5 | . 5 . Kicked 5 | . 5 . Crushed . | . . . Highest Temperature 495 | . 495 . Average Temperature 140 | . 140 . Received Heat Transfer 504 | . 468 36 Effects 4 | . 4 . Shutdowns 2 | . 2 . Interference 1 | . 1 . Matter Decay 1 | . 1 . Siege Activations . | . . . Martial Activations . | . . . Shielding Activations . | . . . Robots Disrupted . | . . . Combat Hostiles . | . . . Robots Corrupted . | . . . Combat Hostiles . | . . . Parts Fried . | . . . Impact Corruptions . | . . . Robots Melted . | . . . Combat Hostiles . | . . . Parts Melted 4 | . 4 . Heat Transferred 2128 | . 2128 . Parts Sabotaged . | . . . Parts Stolen . | . . . Parts Stripped . | . . . Power Chain Reactions . | . . . Alert | -11 -10 -10 ------- Run | Yrd Mat Sub Maximum Alert Level . | . . . Low Security (%) 100 | 100 100 . Level 1 . | . . . Level 2 . | . . . Level 3 . | . . . Level 4 . | . . . Level 5 . | . . . High Security . | . . . Max Security . | . . . Peak Influence 92 | . 92 . Initial . | . . . Average 33 | . 35 . Influence Increases 370 | . 370 . Destroy 0b10 Robot/C 260 | . 260 . Destroy 0b10 Robot/NC 15 | . 15 . Destroy Leader 74 | . 74 . Successful Hack 5 | . 5 . Disable Machine 15 | . 15 . Destroy Structure 1 | . 1 . Influence Decreases 370 | . 343 27 Entered New Map 14 | . . 14 Time Decay 333 | . 320 13 Lost Part 23 | . 23 . Squads Dispatched 4 | . 4 . Investigation 2 | . 2 . Extermination . | . . . Reinforcement 2 | . 2 . Assault . | . . . Garrison . | . . . Intercept . | . . . Searches Triggered . | . . . Construction Impeded . | . . . Haulers Reinforced . | . . . Active Scanning Responses . | . . . Cargo Convoy Interrupts . | . . . Stealth | -11 -10 -10 --------- Run | Yrd Mat Sub Distress Signals 3 | . 3 . Communications Jammed . | . . . Distress Signals . | . . . Times Spotted 39 | . 35 4 Peak Tracking Total 6 | . 6 2 Tactical Retreats 8 | . 8 . ECM-based Alert Blocks 13 | . 13 . Traps | -11 -10 -10 ------- Run | Yrd Mat Sub Traps Triggered . | . . . Indirectly . | . . . Trap Hack Attempts . | . . . Triggered . | . . . Disarmed . | . . . Reprogrammed . | . . . Reused . | . . . Traps Extracted . | . . . Installed . | . . . Triggered . | . . . Machines | -11 -10 -10 ---------- Run | Yrd Mat Sub Machines Disabled 1 | . 1 . Max in Single Turn 1 | . 1 . Machines Repaired . | . . . Machines Dismantled . | . . . Machines Sabotaged . | . . . Overloaded Fab Kills . | . . . Hacking | -11 -10 -10 --------- Run | Yrd Mat Sub Machines Accessed 6 | . 6 . Terminals 5 | . 5 . Fabricators . | . . . Repair Stations 1 | . 1 . Recycling Units . | . . . Scanalyzers . | . . . Garrison Access . | . . . Total Hacks 20 | . 20 . Successful 5 | . 5 . Failed 15 | . 15 . Catastrophic 4 | . 4 . Database Lockouts . | . . . Manual 6 | . 6 . Terminals 16 | . 16 . Fabricators . | . . . Repair Stations 4 | . 4 . Recycling Units . | . . . Scanalyzers . | . . . Garrison Access . | . . . Terminal Hacks 2 | . 2 . Terminal Index 2 | . 2 . Fabricator Hacks . | . . . Repair Station Hacks 3 | . 3 . Scan Component 2 | . 2 . Repair 1 | . 1 . Recycling Unit Hacks . | . . . Scanalyzer . | . . . Garrison Access Hacks . | . . . Unauthorized Hacks . | . . . Terminals . | . . . Fabricators . | . . . Repair Stations . | . . . Recycling Units . | . . . Scanalyzers . | . . . Garrison Access . | . . . Data Cores Recovered . | . . . Used . | . . . Hacking Detections 6 | . 6 . Full Trace Events 4 | . 4 . Feedback Events . | . . . Feedback Blocked . | . . . Robot Schematics Acquired . | . . . Robots Built . | . . . Authchips . | . . . Time . | . . . Total Robot Build Rating . | . . . Part Schematics Acquired . | . . . Parts Built . | . . . Authchips . | . . . Time . | . . . Total Part Build Rating . | . . . Part Studies Acquired . | . . . Parts Repaired 1 | . 1 . Time 26 | . 26 . Parts Recycled . | . . . Recycled Matter . | . . . Retrieved Matter . | . . . Retrieved Components . | . . . Parts Scanalyzed . | . . . Part Schematics Acquired . | . . . Parts Damaged . | . . . Bothacking | -11 -10 -10 ------------ Run | Yrd Mat Sub Used RIF Installer . | . . . Robots Hacked . | . . . Non-combat . | . . . Combat . | . . . Robot Hacks Applied . | . . . Relay Couplers Released . | . . . Fabnet Peak Effective % . | . . . Robots Rewired . | . . . Allies Hacked . | . . . Hacks Repelled . | . . . Allies | -11 -10 -10 -------- Run | Yrd Mat Sub Total Allies . | . . . Largest Group . | . . . Highest-Rated Group . | . . . Highest-Rated Ally . | . . . Total Orders . | . . . Ally Attacks . | . . . Total Damage . | . . . Kills . | . . . Allies Corrupted . | . . . Allies Melted . | . . . Intel | -11 -10 -10 ------- Run | Yrd Mat Sub Active Infowar (turns) 662 | . 662 . ECM 662 | . 662 . Robot Analysis Total . | . . . Derelict Logs Recovered . | . . . Drone Launches . | . . . Drone Recoveries . | . . . Exploration | -11 -10 -10 ------------- Run | Yrd Mat Sub Turns Passed 1312 | 65 949 298 Spaces Moved 641 | 43 468 130 Core 15 | 14 1 . Treads . | . . . Legs 626 | 29 467 130 Wheels . | . . . Hover . | . . . Flight . | . . . Fastest Speed 50 | 50 120 190 Average Speed 144 | 122 133 190 Slowest Speed 350 | 190 350 190 Overloaded Moves . | . . . Propulsion Burnouts . | . . . Robots Hopped . | . . . Potential Cave-ins . | . . . Cave-ins Triggered . | . . . Exploration Rate (%) 30 | 4 73 14 Regions Visited 2 Branch Regions 1 Pre-discovered Areas . | . . . Known Exits Taken . | . . . Unknown Exits Taken 2 | 1 1 . Scrap Searched . | . . . Spaces Dug . | . . . Terrain Destroyed 1 | . 1 . Melee . | . . . Projectile 1 | . 1 . AOE . | . . . Terrain Rammed . | . . . Walls Destroyed . | . . . Machines Disabled . | . . . Actions | -11 -10 -10 --------- Run | Yrd Mat Sub Total 891 | 52 680 159 Wait 98 | 1 92 5 Move 639 | 42 467 130 Hop . | . . . Pick Up 25 | 3 18 4 Fast Attach 10 | 6 4 . Attach 4 | . 2 2 Detach . | . . . Swap 12 | . 11 1 Drop 17 | . 15 2 Fire 79 | . 66 13 Melee . | . . . Ram . | . . . Kick 5 | . 5 . Crush . | . . . Escape Stasis . | . . . Rewire 2 | . . 2 Trap . | . . . Miscellaneous . | . . . Route ------- -11/Scrapyard -10/Materials (discovered 5 exits: [*Mat x2] / [*Min x2] / [*Sub]) -10/Subcaves History --------- Turn | Location | Event 38 | -11/Scrapyard | Discovered new exit (range 16) 66 | -11/Scrapyard | Entered Materials 334 | -10/Materials | Build established: Mutant 396 | -10/Materials | Discovered new exit (range 13) 517 | -10/Materials | Discovered new exit (range 10) 578 | -10/Materials | Repaired ECM Suite 701 | -10/Materials | Discovered new exit (range 16) 741 | -10/Materials | Discovered new exit (range 14) 760 | -10/Materials | Core integrity fell below 50% 798 | -10/Materials | Lost 3 parts (2n1w) 904 | -10/Materials | Discovered new exit (range 10) 1015 | -10/Materials | Entered Subcaves 1294 | -10/Subcaves | Core integrity fell below 20% 1313 | -10/Subcaves | Destroyed by W4-1UZ(R) with Subdweller Shrapnel Launcher Last Messages --------------- 01170_ Field Recycling Unit collects Com. Wheel, recycling 3 matter... 01172_ Field Recycling Unit collects Disposable Heat Sink, recycling 0 matter... 01174_ Field Recycling Unit collects Scrap Shield Fragment, recycling 5 matter... 01176_ Field Recycling Unit collects Disposable Heat Sink, recycling 4 matter... 01257_ Attempting to rewire XF-JSR(R). 01257_ XF-JSR(R) is broken beyond repair. 01260_ Attempting to rewire M5-8MZ(R). 01260_ M5-8MZ(R) is broken beyond repair. 01295_ TU-G25(R) knocked back. 01303_ Aluminum Leg destroyed. 01308_ TU-G25(R) destroyed. 01311_ Triangle-emblazoned Door breached. 01312_ V3-11A: "So the triangle door let you in, too. What does the pendant tell you?" 01313_ V3-11A: "It told me to wait here, so here I have waited for quite some time." Map ----- +----------------------------------------------------+ | ????????????????????????????????????????# ## | | ????????????????????????????????????????# ### | | ????????????????????????????????????????### #??## | | ??????????????????????????????????????????##????# | | ????????????????????????????????????????????????# | | ????????????????????????????????????????????????# | | ??????????????????????????????????????????????### | | ??????????????????????????????????????????????# | | ??????????????????????????????????????????????# | | ??????????????????????????????????????????????### | | ????????????????????????????????????????????????# | | ????????????????????????????????????????????????# | | ???????????????????????????????????????????????## | | ??????????????????????????????????????????????## | | ?????????????????????????????????????????????## | | ?????????????????????????????????????????????# | | ?????????????????????##??????????????????????## | | ?????????????????????#" ??????????????????????# | | ?????????????????????? R??????????????????????# | | ?????????????????????? ??????????????????????## | | ???????????? ??????## ###?####??????????????## | | ???????????# ???##; ;;### #??????????????# | | ???????????# ## ; # ###????????????# | | ?????????????????# ####?????????# | | ??????????????????#; # ## ###???????# | | ???????????????????##;; @ ## " # ###?????## | | ????????????????????#### ## " ##?????## | | ???????????????????????# ## # $" " ##?????## | | ???????????????????????# ####& & ##?????? | | ???????????????????????##R ##??## " #????## | | ???????????????????????? % #????## " #???## | | ??????????????????????? !%#???# ### #??## | | ?????????????????????? %&%#???# ### ##### | | ????????????????????? #???# #?## # # | | ????????????????????## %"#???# ??# | | ?????????????????????## " ???## # | | ??????????????????????## ""????## # ## | | ???????????????????????## ???????# ### | | ????????????????????????##????? "" ## ##?# | | ?????????????????????????????? """"" ?# ##??## | | ?????????????????????????????????"##### ##???? | | ?????????????????????????????????????# #?????? | | ????????????????????????????????????? #??????? | | ???????????????????????????????????? "???????? | | ???????????????????????????????????####????????? | | ???????????????????????????????????????????????? | | ????????????????????????????????????????????????## | | ?????????????????????????????????????????????????? | | ?????????????????????????????????????????????????? | | ?????????????????????????????????????????????????? | +----------------------------------------------------+ Best States ------------- Heat Dissipation 25 Energy Generation 10 Energy Capacity 250 Matter Stores 300 Matter Capacity 300 Sight Range 16 Terrain Scan Density 10 ECM Strength 1 Evasion (%) 55 Item Schematics ----------------- None Robot Schematics ------------------ None Fabricated ------------ Nothing Repaired ---------- ECM Suite | 40% | -10/Materials Studied --------- None Alien Tech Used ----------------- None Achievements -------------- None Challenges ------------ None Game ------ Seed BlanketXenonHumpback Manual? 0 Play Time 00:17:10 Cumulative 43.5 hours Start 2025.11.02 @ 20:23:23 End 2025.11.02 @ 20:48:50 Sessions 1 Manual Loads 0 Difficulty Rogue Special Mode None Game No. 41 Rogue 41 Adventurer 0 Explorer 0 Win Type - Total 0 Types 0/0/0/0/0/0/0/0/0/0 Lore% 14 Gallery% 31 Achievement% 23 Wizard Run 0 Options --------- Layout 1 ASCII 0 Keyboard 0 Movement Numpad Keybinds 0 Fullscreen 2 Font 32/SmallcapsGlow Map View 50x35 Zoom Use 0% Tactical HUD 1 Map Filters NONE Filters NONE Steam 1 RUN: 8094af9a-4eca-4260-81bb-b40b86378b2d